fUSD/lending_fUSD_20240802
["ID","MTS","AMOUNT","RATE_DAILY","PERIOD"]
[333928884,1722631896955,-1042.43,0.00017534,2]
[333928885,1722631896964,-500.0,0.00017534,2]
[333928886,1722631896973,-682.61,0.00017534,2]
[333928887,1722631896982,-500.0,0.00017534,2]
[333928888,1722631896991,-500.0,0.00017534,2]
[333928889,1722631897005,-507.46276831,0.00017534,2]
[333928890,1722631897014,-500.0,0.00017534,2]
[333928891,1722631897023,-500.0,0.00017534,2]
[333928892,1722631897032,-500.0,0.00017534,2]
[333928893,1722631897042,-542.86,0.00017534,2]
[333928894,1722631897052,-5597.96,0.00017534,2]
[333928895,1722631897062,-500.0,0.00017534,2]
[333928896,1722631897071,-2581.7,0.00017534,2]
[333928897,1722631897080,-500.0,0.00017534,2]
[333928898,1722631897090,-500.0,0.00017534,2]
[333928899,1722631897099,-770.59,0.00017534,2]
[333928900,1722631897108,-189.49621114,0.00017534,2]
[333928901,1722631897118,-1538.15,0.00017534,2]
[333928902,1722631897127,-500.0,0.00017534,2]
[333928903,1722631897138,-4231.25,0.00017534,2]
[333928904,1722631897148,-19964.17,0.00017534,2]
[333928905,1722631897158,-1647.69,0.00017534,2]
[333928906,1722631897168,-500.0,0.00017534,2]
[333928907,1722631897177,-580.13,0.00017534,2]
[333928908,1722631897187,-674.61,0.00017534,2]
[333928909,1722631897197,-500.0,0.00017534,2]
[333928910,1722631897207,-597.33,0.00017534,2]
[333928911,1722631897217,-5044.32,0.00017534,2]
[333928912,1722631897226,-500.0,0.00017534,2]
[333928913,1722631897235,-500.0,0.00017534,2]
[333928914,1722631897245,-1410.02,0.00017534,2]
[333928915,1722631897255,-1670.95,0.00017534,2]
[333928916,1722631897265,-500.0,0.00017534,2]
[333928917,1722631897275,-1333.37,0.00017534,2]
[333928918,1722631897285,-3305.18,0.00017534,2]
[333928919,1722631897294,-500.0,0.00017534,2]
[333928920,1722631897305,-5839.16,0.00017534,2]
[333928921,1722631897315,-500.0,0.00017534,2]
[333928922,1722631897325,-2491.77,0.00017534,2]
[333928923,1722631897335,-500.0,0.00017534,2]
[333928924,1722631897345,-500.0,0.00017534,2]
[333928925,1722631897354,-3253.37,0.00017534,2]
[333928926,1722631897364,-150.0,0.00017534,2]
[333928927,1722631897374,-1525.69,0.00017534,2]
[333928928,1722631897383,-680.81,0.00017534,2]
[333928929,1722631897393,-1475.58,0.00017534,2]
[333928930,1722631897403,-874.43,0.00017534,2]
[333928931,1722631897414,-881.6,0.00017534,2]
[333928932,1722631897423,-500.0,0.00017534,2]
[333928933,1722631897433,-1811.88,0.00017534,2]
[333928934,1722631897444,-963.16,0.00017534,2]
[333928935,1722631897456,-1489.44,0.00017534,2]
[333928936,1722631897466,-2222.35,0.00017534,2]
[333928937,1722631897475,-1632.57,0.00017534,2]
[333928938,1722631897485,-1023.72,0.00017534,2]
[333928939,1722631897495,-500.0,0.00017534,2]
[333928940,1722631897504,-500.0,0.00017534,2]
[333928941,1722631897637,-12414.66,0.00017534,2]
[333928942,1722631897647,-709.25,0.00017534,2]
[333928943,1722631897656,-753.62,0.00017534,2]
[333928944,1722631897666,-506.18,0.00017534,2]
[333928945,1722631897680,-652.1,0.00017534,2]
[333928946,1722631897689,-641.97,0.00017534,2]
[333928947,1722631897700,-560.86,0.00017534,2]
[333928948,1722631897709,-500.0,0.00017534,2]
[333928949,1722631897719,-500.0,0.00017534,2]
[333928950,1722631897728,-56866.82,0.00017534,2]
[333928951,1722631897738,-1035.53,0.00017534,2]
[333928952,1722631897747,-1941.09,0.00017534,2]
[333928953,1722631897758,-2254.17,0.00017534,2]
[333928954,1722631897768,-1098.24,0.00017534,2]
[333928955,1722631897778,-2191.59,0.00017534,2]
[333928956,1722631897787,-1032.58,0.00017534,2]
[333928957,1722631897797,-534.81,0.00017534,2]
[333928958,1722631897806,-1471.92,0.00017534,2]
[333928959,1722631897817,-722.26,0.00017534,2]
[333928960,1722631897826,-1164.82,0.00017534,2]
[333928961,1722631897836,-1289.96,0.00017534,2]
[333928962,1722631897846,-929.85,0.00017534,2]
[333928963,1722631897856,-2008.59,0.00017534,2]
[333928964,1722631897865,-1026.06,0.00017534,2]
[333928965,1722631897875,-1825.01,0.00017534,2]
[333928966,1722631897886,-876.3,0.00017534,2]
[333928967,1722631897896,-500.0,0.00017534,2]
[333928968,1722631897906,-1590.68,0.00017534,2]
[333928969,1722631897916,-1819.5,0.00017534,2]
[333928970,1722631897926,-4221.24,0.00017534,2]
[333928971,1722631897936,-500.0,0.00017534,2]
[333928972,1722631897949,-500.0,0.00017534,2]
[333928973,1722631897960,-2709.73,0.00017534,2]
[333928974,1722631897970,-1273.14,0.00017534,2]
[333928975,1722631897979,-2065.12,0.00017534,2]
[333928976,1722631897989,-777.69,0.00017534,2]
[333928977,1722631897998,-500.0,0.00017534,2]
[333928978,1722631898007,-21339.92,0.00017534,2]
[333928979,1722631898017,-728.61,0.00017534,2]
[333928980,1722631898026,-1275.99,0.00017534,2]
[333928981,1722631898035,-2937.5,0.00017534,2]
[333928982,1722631898045,-2027.9,0.00017534,2]
[333928983,1722631898054,-536.05,0.00017534,2]
[333928984,1722631898063,-1082.28,0.00017534,2]
[333928985,1722631898072,-621.07184082,0.00017534,2]
[333928986,1722631898082,-1697.37,0.00017534,2]
[333928987,1722631898091,-532.9517681,0.00017534,2]
[333928988,1722631898101,-10282.29,0.00017534,2]
[333928989,1722631898110,-196.86144491,0.00017534,2]
[333928990,1722631898119,-1205.76,0.00017534,2]
[333928991,1722631898129,-1232.26,0.00017534,2]
[333928992,1722631898138,-8341.36,0.00017534,2]
[333928993,1722631898148,-500.0,0.00017534,2]
[333928994,1722631898157,-500.0,0.00017534,2]
[333928995,1722631898167,-18588.87,0.00017534,2]
[333928996,1722631898177,-2444.44,0.00017534,2]
[333928997,1722631898186,-811.82,0.00017534,2]
[333928998,1722631898198,-1028.42,0.00017534,2]
[333928999,1722631898211,-1666.82,0.00017534,2]
[333929000,1722631898221,-2041.7,0.00017534,2]
[333929001,1722631898230,-500.0,0.00017534,2]
[333929002,1722631898240,-854.03,0.00017534,2]
[333929003,1722631898250,-2549.35,0.00017534,2]
[333929004,1722631898259,-3907.73,0.00017534,2]
[333929005,1722631898269,-962.09,0.00017534,2]
[333929006,1722631898278,-818.92,0.00017534,2]
[333929007,1722631898287,-2495.02,0.00017534,2]
[333929008,1722631898300,-12083.15,0.00017534,2]
[333929009,1722631898311,-4999.3,0.00017534,2]
[333929010,1722631898321,-2085.16,0.00017534,2]
[333929011,1722631898330,-2257.59,0.00017534,2]
[333929012,1722631898340,-638.28,0.00017534,2]
[333929013,1722631898350,-2414.82,0.00017534,2]
[333929014,1722631898359,-1355.63,0.00017534,2]
[333929015,1722631898370,-500.0,0.00017534,2]
[333929016,1722631898380,-500.0,0.00017534,2]
[333929017,1722631898390,-500.0,0.00017534,2]
[333929018,1722631898400,-500.0,0.00017534,2]
[333929019,1722631898411,-874.71,0.00017534,2]
[333929020,1722631898421,-500.0,0.00017534,2]
[333929021,1722631898431,-608.96,0.00017534,2]
[333929022,1722631898445,-9705.12,0.00017534,2]
[333929023,1722631898455,-500.0,0.00017534,2]
[333929024,1722631898465,-14082.4,0.00017534,2]
[333929025,1722631898475,-1893.08,0.00017534,2]
[333929026,1722631898486,-523.03,0.00017534,2]
[333929027,1722631898495,-1119.23,0.00017534,2]
[333929028,1722631898504,-500.0,0.00017534,2]
[333929029,1722631898514,-683.87,0.00017534,2]
[333929030,1722631898524,-500.0,0.00017534,2]
[333929031,1722631898534,-1860.28,0.00017534,2]
[333929032,1722631898544,-500.0,0.00017534,2]
[333929033,1722631898554,-500.0,0.00017534,2]
[333929034,1722631898564,-1382.6,0.00017534,2]
[333929035,1722631898574,-903.96,0.00017534,2]
[333929036,1722631898584,-3530.0,0.00017534,2]
[333929037,1722631898594,-3961.34,0.00017534,2]
[333929038,1722631898604,-500.0,0.00017534,2]
[333929039,1722631898614,-500.0,0.00017534,2]
[333929040,1722631898624,-500.0,0.00017534,2]
[333929041,1722631898634,-500.0,0.00017534,2]
[333929042,1722631898644,-843.81,0.00017534,2]
[333929043,1722631898653,-12529.11,0.00017534,2]
[333929044,1722631898663,-500.0,0.00017534,2]
[333929045,1722631898677,-500.0,0.00017534,2]
[333929046,1722631898687,-954.34,0.00017534,2]
[333929047,1722631898700,-639.03,0.00017534,2]
[333929048,1722631898718,-548.88609571,0.00017534,2]
[333929049,1722631898728,-500.0,0.00017534,2]
[333929050,1722631898739,-3001.26,0.00017534,2]
[333929051,1722631898749,-500.0,0.00017534,2]
[333929052,1722631898760,-683.57,0.00017534,2]
[333929053,1722631898769,-1798.8,0.00017534,2]
[333929054,1722631898780,-500.0,0.00017534,2]
[333929055,1722631898790,-5697.34,0.00017534,2]
[333929056,1722631898800,-1463.12,0.00017534,2]
[333929057,1722631898811,-4074.77,0.00017534,2]
[333929058,1722631898821,-897.77,0.00017534,2]
[333929059,1722631898831,-878.31,0.00017534,2]
[333929060,1722631898841,-5102.81,0.00017534,2]
[333929061,1722631898851,-655.72,0.00017534,2]
[333929062,1722631898862,-1743.47,0.00017534,2]
[333929063,1722631898873,-318.74106108,0.00017534,2]
[333929064,1722631898884,-500.0,0.00017534,2]
[333929065,1722631898898,-1173.24,0.00017534,2]
[333929066,1722631898910,-343.55169672,0.00017534,2]
[333929067,1722631898920,-500.0,0.00017534,2]
[333929068,1722631898930,-6837.04,0.00017534,2]
[333929069,1722631898941,-5756.18,0.00017534,2]
[333929070,1722631898955,-1257.32,0.00017534,2]
[333929071,1722631898965,-500.0,0.00017534,2]
[333929072,1722631898975,-1650.22,0.00017534,2]
[333929073,1722631898985,-2765.65,0.00017534,2]
[333929074,1722631898995,-2301.74,0.00017534,2]
[333929075,1722631899005,-500.0,0.00017534,2]
[333929076,1722631899015,-6409.64,0.00017534,2]
[333929077,1722631899025,-1236.74,0.00017534,2]
[333929078,1722631899035,-509.19,0.00017534,2]
[333929079,1722631899045,-733.33,0.00017534,2]
[333929080,1722631899056,-500.0,0.00017534,2]
[333929081,1722631899066,-188.23775255,0.00017534,2]
[333929082,1722631899075,-500.0,0.00017534,2]
[333929083,1722631899086,-5372.26,0.00017534,2]
[333929084,1722631899096,-5544.95,0.00017534,2]
[333929085,1722631899106,-3951.1,0.00017534,2]
[333929086,1722631899116,-1851.65,0.00017534,2]
[333929087,1722631899127,-2577.99,0.00017534,2]
[333929088,1722631899137,-3586.66,0.00017534,2]
[333929089,1722631899147,-1224.81,0.00017534,2]
[333929090,1722631899157,-1209.35,0.00017534,2]
[333929091,1722631899167,-500.0,0.00017534,2]
[333929092,1722631899177,-2249.46,0.00017534,2]
[333929093,1722631899186,-649.19405796,0.00017534,2]
[333929094,1722631899199,-10535.6,0.00017534,2]
[333929095,1722631899209,-2406.02,0.00017534,2]
[333929096,1722631899219,-1453.7,0.00017534,2]
[333929097,1722631899229,-559.04,0.00017534,2]
[333929098,1722631899238,-2538.45,0.00017534,2]
[333929099,1722631899247,-500.0,0.00017534,2]
[333929100,1722631899257,-8692.9,0.00017534,2]
[333929101,1722631899267,-500.0,0.00017534,2]
[333929102,1722631899277,-583.08787084,0.00017534,2]
[333929103,1722631899286,-3396.73,0.00017534,2]
[333929104,1722631899297,-3668.51,0.00017534,2]
[333929105,1722631899307,-2268.82,0.00017534,2]
[333929106,1722631899317,-1514.47,0.00017534,2]
[333929107,1722631899327,-1406.85,0.00017534,2]
[333929108,1722631899337,-500.0,0.00017534,2]
[333929109,1722631899347,-523.86,0.00017534,2]
[333929110,1722631899357,-502.95,0.00017534,2]
[333929111,1722631899367,-688.7,0.00017534,2]
[333929112,1722631899377,-1979.47,0.00017534,2]
[333929113,1722631899387,-922.87,0.00017534,2]
[333929114,1722631899397,-3211.99,0.00017534,2]
[333929115,1722631899407,-797.53,0.00017534,2]
[333929116,1722631899420,-2191.83,0.00017534,2]
[333929117,1722631899430,-3705.69,0.00017534,2]
[333929118,1722631899440,-500.0,0.00017534,2]
[333929119,1722631899452,-500.0,0.00017534,2]
[333929120,1722631899461,-1575.51,0.00017534,2]
[333929121,1722631899471,-3196.73,0.00017534,2]
[333929122,1722631899481,-2709.61,0.00017534,2]
[333929123,1722631899491,-500.0,0.00017534,2]
[333929124,1722631899501,-500.0,0.00017534,2]
[333929125,1722631899511,-2713.18,0.00017534,2]
[333929126,1722631899520,-4453.97,0.00017534,2]
[333929127,1722631899530,-1958.22,0.00017534,2]
[333929128,1722631899540,-500.0,0.00017534,2]
[333929129,1722631899550,-2340.98,0.00017534,2]
[333929130,1722631899560,-500.0,0.00017534,2]
[333929131,1722631899570,-563.69,0.00017534,2]
[333929132,1722631899580,-869.62,0.00017534,2]
[333929133,1722631899590,-2375.03,0.00017534,2]
[333929134,1722631899599,-500.0,0.00017534,2]
[333929135,1722631899609,-2389.86,0.00017534,2]
[333929136,1722631899618,-500.0,0.00017534,2]
[333929137,1722631899628,-1715.15,0.00017534,2]
[333929138,1722631899637,-630.02,0.00017534,2]
[333929139,1722631899647,-500.0,0.00017534,2]
[333929140,1722631899657,-3562.05,0.00017534,2]
[333929141,1722631899667,-2469.32,0.00017534,2]
[333929142,1722631899680,-6540.2,0.00017534,2]
[333929143,1722631899690,-9151.13,0.00017534,2]
[333929144,1722631899701,-4990.42,0.00017534,2]
[333929145,1722631899711,-509.1,0.00017534,2]
[333929146,1722631899722,-658.08,0.00017534,2]
[333929147,1722631899731,-3342.69,0.00017534,2]
[333929148,1722631899741,-500.0,0.00017534,2]
[333929149,1722631899752,-26009.1,0.00017534,2]
[333929150,1722631899761,-28175.02,0.00017534,2]
[333929151,1722631899771,-500.0,0.00017534,2]
[333929152,1722631899781,-4775.81,0.00017534,2]
[333929153,1722631899790,-1900.39,0.00017534,2]
[333929154,1722631899800,-2182.95,0.00017534,2]
[333929155,1722631899810,-1438.66,0.00017534,2]
[333929156,1722631899819,-4377.02,0.00017534,2]
[333929157,1722631899829,-500.0,0.00017534,2]
[333929158,1722631899840,-3264.99,0.00017534,2]
[333929159,1722631899850,-852.15,0.00017534,2]
[333929160,1722631900205,-6436.04,0.00017534,2]
[333929161,1722631900215,-645.59,0.00017534,2]
[333929162,1722631900224,-500.0,0.00017534,2]
[333929163,1722631900234,-1240.73,0.00017534,2]
[333929164,1722631900243,-3696.16,0.00017534,2]
[333929165,1722631900252,-1202.01,0.00017534,2]
[333929166,1722631900262,-2794.37,0.00017534,2]
[333929167,1722631900272,-500.0,0.00017534,2]
[333929168,1722631900281,-2251.71,0.00017534,2]
[333929169,1722631900292,-500.0,0.00017534,2]
[333929170,1722631900302,-3027.14,0.00017534,2]
[333929171,1722631900312,-926.19,0.00017534,2]
[333929172,1722631900322,-504.24,0.00017534,2]
[333929173,1722631900332,-1612.54,0.00017534,2]
[333929174,1722631900342,-500.0,0.00017534,2]
[333929175,1722631900352,-2122.85,0.00017534,2]
[333929176,1722631900361,-3341.29,0.00017534,2]
[333929177,1722631900370,-694.52,0.00017534,2]
[333929178,1722631900381,-1082.52,0.00017534,2]
[333929179,1722631900391,-650.54,0.00017534,2]
[333929180,1722631900400,-2598.43,0.00017534,2]
[333929181,1722631900409,-6297.72,0.00017534,2]
[333929182,1722631900419,-2653.91,0.00017534,2]
[333929183,1722631900429,-2172.15,0.00017534,2]
[333929184,1722631900439,-500.0,0.00017534,2]
[333929185,1722631900450,-500.0,0.00017534,2]
[333929186,1722631900460,-948.12,0.00017534,2]
[333929187,1722631900470,-1222.98,0.00017534,2]
[333929188,1722631900480,-500.0,0.00017534,2]
[333929189,1722631900490,-2097.85,0.00017534,2]
[333929190,1722631900499,-1334.04,0.00017534,2]
[333929191,1722631900509,-500.0,0.00017534,2]
[333929192,1722631900519,-6565.68,0.00017534,2]
[333929193,1722631900530,-500.0,0.00017534,2]
[333929194,1722631900540,-15546.98,0.00017534,2]
[333929195,1722631900550,-3121.8,0.00017534,2]
[333929196,1722631900560,-500.0,0.00017534,2]
[333929197,1722631900571,-817.51,0.00017534,2]
[333929198,1722631900581,-951.07,0.00017534,2]
[333929199,1722631900590,-11666.5,0.00017534,2]
[333929200,1722631900600,-1727.02,0.00017534,2]
[333929201,1722631900612,-1473.22,0.00017534,2]
[333929202,1722631900623,-2288.81,0.00017534,2]
[333929203,1722631900634,-6263.88,0.00017534,2]
[333929204,1722631900644,-1227.93,0.00017534,2]
[333929205,1722631900656,-1322.25,0.00017534,2]
[333929206,1722631900666,-522.62,0.00017534,2]
[333929207,1722631900678,-500.0,0.00017534,2]
[333929208,1722631900690,-1919.7,0.00017534,2]
[333929209,1722631900701,-500.0,0.00017534,2]
[333929210,1722631900711,-3515.09,0.00017534,2]
[333929211,1722631900722,-3829.18,0.00017534,2]
[333929212,1722631900732,-5376.17,0.00017534,2]
[333929213,1722631900742,-673.19,0.00017534,2]
[333929214,1722631900753,-2822.75,0.00017534,2]
[333929215,1722631900763,-2008.35,0.00017534,2]
[333929216,1722631900773,-981.35,0.00017534,2]
[333929217,1722631900783,-500.0,0.00017534,2]
[333929218,1722631900792,-685.52,0.00017534,2]
[333929219,1722631900802,-4435.49,0.00017534,2]
[333929220,1722631900812,-618.07167553,0.00017534,2]
[333929221,1722631900821,-872.74,0.00017534,2]
[333929222,1722631900831,-949.06,0.00017534,2]
[333929223,1722631900841,-2658.03,0.00017534,2]
[333929224,1722631900851,-5218.0,0.00017534,2]
[333929225,1722631900861,-500.0,0.00017534,2]
[333929226,1722631900871,-574.23,0.00017534,2]
[333929227,1722631900883,-3400.22,0.00017534,2]
[333929228,1722631900893,-2831.52,0.00017534,2]
[333929229,1722631900902,-1002.52,0.00017534,2]
[333929230,1722631900912,-2314.61,0.00017534,2]
[333929231,1722631900922,-500.0,0.00017534,2]
[333929232,1722631900931,-776.68,0.00017534,2]
[333929233,1722631900941,-500.0,0.00017534,2]
[333929234,1722631900953,-361.67334245,0.00017534,2]
[333929235,1722631900962,-739.66,0.00017534,2]
[333929236,1722631900972,-952.19,0.00017534,2]
[333929237,1722631900982,-500.0,0.00017534,2]
[333929238,1722631900991,-3943.83,0.00017534,2]
[333929239,1722631901002,-400.0,0.00017534,2]
[333929240,1722631901012,-1370.55,0.00017534,2]
[333929241,1722631901022,-879.88,0.00017534,2]
[333929242,1722631901032,-5662.54,0.00017534,2]
[333929243,1722631901042,-778.51,0.00017534,2]
[333929244,1722631901052,-4114.11,0.00017534,2]
[333929245,1722631901063,-3003.87,0.00017534,2]
[333929246,1722631901072,-2947.17,0.00017534,2]
[333929247,1722631901082,-994.11,0.00017534,2]
[333929248,1722631901092,-500.0,0.00017534,2]
[333929249,1722631901103,-5178.68,0.00017534,2]
[333929250,1722631901113,-500.0,0.00017534,2]
[333929251,1722631901123,-4631.47,0.00017534,2]
[333929252,1722631901134,-3399.15,0.00017534,2]
[333929253,1722631901143,-3719.52,0.00017534,2]
[333929254,1722631901153,-1176.85,0.00017534,2]
[333929255,1722631901163,-901.79,0.00017534,2]
[333929256,1722631901173,-500.0,0.00017534,2]
[333929257,1722631901183,-1866.32,0.00017534,2]
[333929258,1722631901193,-2716.92,0.00017534,2]
[333929259,1722631901205,-5014.53,0.00017534,2]
[333929260,1722631901214,-6934.89,0.00017534,2]
[333929261,1722631901225,-500.0,0.00017534,2]
[333929262,1722631901235,-2157.87,0.00017534,2]
[333929263,1722631901245,-1862.83,0.00017534,2]
[333929264,1722631901255,-3448.97,0.00017534,2]
[333929265,1722631901266,-502.73,0.00017534,2]
[333929266,1722631901276,-1053.43,0.00017534,2]
[333929267,1722631901286,-3688.62,0.00017534,2]
[333929268,1722631901295,-17990.99,0.00017534,2]
[333929269,1722631901305,-1295.04,0.00017534,2]
[333929270,1722631901315,-9446.74,0.00017534,2]
[333929271,1722631901325,-940.79,0.00017534,2]
[333929272,1722631901335,-6650.95,0.00017534,2]
[333929273,1722631901345,-500.0,0.00017534,2]
[333929274,1722631901355,-500.0,0.00017534,2]
[333929275,1722631901365,-500.0,0.00017534,2]
[333929276,1722631901375,-2082.58,0.00017534,2]
[333929277,1722631901384,-4468.87,0.00017534,2]
[333929278,1722631901394,-1111.44,0.00017534,2]
[333929279,1722631901404,-3800.28,0.00017534,2]
[333929280,1722631901414,-1255.1,0.00017534,2]
[333929281,1722631901424,-500.0,0.00017534,2]
[333929282,1722631901435,-1533.49,0.00017534,2]
[333929283,1722631901448,-750.36,0.00017534,2]
[333929284,1722631901459,-3300.34,0.00017534,2]
[333929285,1722631901469,-500.0,0.00017534,2]
[333929286,1722631901479,-3049.98,0.00017534,2]
[333929287,1722631901489,-1836.69,0.00017534,2]
[333929288,1722631901499,-1276.99,0.00017534,2]
[333929289,1722631901508,-2045.49,0.00017534,2]
[333929290,1722631901518,-1190.92,0.00017534,2]
[333929291,1722631901528,-537.78,0.00017534,2]
[333929292,1722631901538,-3361.18,0.00017534,2]
[333929293,1722631901548,-500.0,0.00017534,2]
[333929294,1722631901557,-896.88,0.00017534,2]
[333929295,1722631901567,-939.76,0.00017534,2]
[333929296,1722631901577,-2572.45,0.00017534,2]
[333929297,1722631901586,-1613.0,0.00017563,2]
[333929298,1722631901596,-200.36069263,0.00017573,2]
[333929299,1722631901605,-151.72863448,0.00017586,2]
[333929300,1722631901615,-69816.6166547,0.00017677,2]
[333929301,1722631901626,-4525.1968891,0.00017677,2]
[333929302,1722631901637,-16045.63488926,0.00017689,2]
[333929303,1722631901647,-171.29283695,0.00017708,2]
[333929304,1722631901657,-508.79891608,0.00017805,2]
[333929305,1722631901667,-500.0,0.00017808,2]
[333929306,1722631901680,-1253.02,0.00017808,2]
[333929307,1722631901692,-500.0,0.00017808,2]
[333929308,1722631901706,-500.0,0.00017808,2]
[333929309,1722631901717,-2250.07,0.00017808,2]
[333929310,1722631901726,-1145.72,0.00017808,2]
[333929311,1722631901736,-500.0,0.00017808,2]
[333929312,1722631901745,-643.67,0.00017808,2]
[333929313,1722631901756,-500.0,0.00017808,2]
[333929314,1722631901766,-828.51,0.00017808,2]
[333929315,1722631901775,-659.65,0.00017808,2]
[333929316,1722631901784,-714.58,0.00017808,2]
[333929317,1722631901795,-1399.14,0.00017808,2]
[333929318,1722631901804,-500.0,0.00017808,2]
[333929319,1722631901814,-500.0,0.00017808,2]
[333929320,1722631901824,-959.33,0.00017808,2]
[333929321,1722631901835,-1202.33,0.00017808,2]
[333929322,1722631901846,-500.0,0.00017808,2]
[333929323,1722631901856,-801.79,0.00017808,2]
[333929324,1722631901866,-850.22,0.00017808,2]
[333929325,1722631901876,-500.0,0.00017808,2]
[333929326,1722631901885,-500.0,0.00017808,2]
[333929327,1722631901894,-1940.96,0.00017808,2]
[333929328,1722631901904,-1164.02,0.00017808,2]
[333929329,1722631901914,-227.08,0.00017808,2]
[333929330,1722631901924,-500.0,0.00017808,2]
[333929331,1722631901933,-684.63,0.00017808,2]
[333929332,1722631901945,-1463.38,0.00017808,2]
[333929333,1722631901955,-678.52,0.00017808,2]
[333929334,1722631901964,-1236.27,0.00017808,2]
[333929335,1722631901973,-500.0,0.00017808,2]
[333929336,1722631901983,-912.78,0.00017808,2]
[333929337,1722631901992,-1399.18,0.00017808,2]
[333929338,1722631902001,-717.09,0.00017808,2]
[333929339,1722631902011,-601.54,0.00017808,2]
[333929340,1722631902020,-500.0,0.00017808,2]
[333929341,1722631902029,-500.0,0.00017808,2]
[333929342,1722631902039,-624.24,0.00017808,2]
[333929343,1722631902048,-772.84,0.00017808,2]
[333929344,1722631902058,-500.0,0.00017808,2]
[333929345,1722631902067,-500.0,0.00017808,2]
[333929346,1722631902076,-590.92,0.00017808,2]
[333929347,1722631902087,-500.0,0.00017808,2]
[333929348,1722631902096,-500.0,0.00017808,2]
[333929349,1722631902105,-500.0,0.00017808,2]
[333929350,1722631902114,-1290.26,0.00017808,2]
[333929351,1722631902124,-578.21,0.00017808,2]
[333929352,1722631902133,-1619.87,0.00017808,2]
[333929353,1722631902142,-500.0,0.00017808,2]
[333929354,1722631902151,-570.92,0.00017808,2]
[333929355,1722631902161,-540.78,0.00017808,2]
[333929356,1722631902170,-696.91,0.00017808,2]
[333929357,1722631902180,-1078.33,0.00017808,2]
[333929358,1722631902190,-500.0,0.00017808,2]
[333929359,1722631902200,-623.34,0.00017808,2]
[333929360,1722631902210,-1419.39,0.00017808,2]
[333929361,1722631902219,-500.0,0.00017808,2]
[333929362,1722631902228,-1662.54,0.00017808,2]
[333929363,1722631902238,-1644.64,0.00017808,2]
[333929364,1722631902248,-780.53,0.00017808,2]
[333929365,1722631902257,-553.18,0.00017808,2]
[333929366,1722631902267,-723.34,0.00017808,2]
[333929367,1722631902277,-791.76,0.00017808,2]
[333929368,1722631902286,-500.0,0.00017808,2]
[333929369,1722631902296,-503.13,0.00017808,2]
[333929370,1722631902305,-801.56,0.00017808,2]
[333929371,1722631902315,-1198.81,0.00017808,2]
[333929372,1722631902325,-500.0,0.00017808,2]
[333929373,1722631902335,-500.0,0.00017808,2]
[333929374,1722631902344,-1604.9,0.00017808,2]
[333929375,1722631902353,-729.83,0.00017808,2]
[333929376,1722631902363,-1748.07,0.00017808,2]
[333929377,1722631902372,-500.0,0.00017808,2]
[333929378,1722631902381,-2059.13,0.00017808,2]
[333929379,1722631902391,-1346.22,0.00017808,2]
[333929380,1722631902400,-997.69,0.00017808,2]
[333929381,1722631902410,-500.0,0.00017808,2]
[333929382,1722631902419,-1212.35,0.00017808,2]
[333929383,1722631902428,-843.11,0.00017808,2]